[Event "FRA-ch Youth U18W 2019"]
[Site "Hyeres"]
[Date "2019.04.21"]
[Round "9.2"]
[White "Rollot, Florence"]
[Black "Belluire, Beatrice"]
[Result "1/2-1/2"]
[ECO "A37"]
[WhiteElo "1975"]
[BlackElo "1870"]
[Annotator "NA"]
[PlyCount "69"]
[EventDate "2019.04.14"]
[EventType "swiss"]
[EventCountry "FRA"]
[SourceTitle "playchess.com"]
[Source "ChessBase"]
[SourceQuality "1"]
[TimeControl "5400+30"]

1. Nf3 {[%emt 0:00:00]} c5 {[%emt 0:00:00]} 2. c4 {[%emt 0:00:00]} Nc6 {[%emt 0:00:00]} 3. g3 {[%emt 0:00:00]} g6 {[%emt 0:00:00]} 4. Nc3 {[%emt 0:00:07]} Bg7 {[%emt 0:00:00]} 5. Bg2 {[%emt 0:00:08]} e5 {[%emt 0:00:00]} 6. O-O {[%emt 0:00:13]} Nge7 {[%emt 0:00:00]} 7. Ne1 {[%emt 0:01:59]} d6 {[%emt 0:00:09]} 8. Nc2 {[%emt 0:00:31]} Be6 {[%emt 0:00:21]} 9. Ne3 {[%emt 0:01:48]} Qd7 {[%emt 0:00:32]} 10. Ned5 {[%emt 0:02:27]} O-O {[%emt 0:02:02]} 11. Rb1 {[%emt 0:03:35]} Rad8 {[%emt 0:18:39]} 12. a3 {[%emt 0:01:10]} Bh3 {[%emt 0:01:31]} 13. b4 {[%emt 0:01:50]} Nxd5 {[%emt 0:02:47]} 14. cxd5 {[%emt 0:05:15]} Bxg2 {[%emt 0:00:25]} 15. Kxg2 {[%emt 0:00:14]} Ne7 {[%emt 0:03:11]} 16. bxc5 {[%emt 0:04:15]} dxc5 {[%emt 0:00:12]} 17. e4 {[%emt 0:00:19]} Nc8 {[%emt 0:06:23]} 18. d3 {[%emt 0:02:53]} Nd6 {[%emt 0:03:15]} 19. Qa4 {[%emt 0:19:01]} b5 {[%emt 0:09:01]} 20. Qa5 {[%emt 0:07:16]} Rb8 {[%emt 0:01:00]} 21. Be3 {[%emt 0:02:50]} Rfc8 {[%emt 0:00:29]} 22. Rfc1 {[%emt 0:08:36]} a6 {[%emt 0:07:16]} 23. f3 {[%emt 0:17:10]} Bf6 {[%emt 0:12:18]} 24. Na2 {[%emt 0:03:00]} c4 {[%emt 0:04:52]} 25. Qd2 {[%emt 0:03:22]} cxd3 {[%emt 0:01:47]} 26. Nb4 {[%emt 0:04:21]} Nc4 {[%emt 0:01:46]} 27. Qxd3 {[%emt 0:00:26]} Qd6 {[%emt 0:10:15]} 28. Bh6 {[%emt 0:04:29]} a5 {[%emt 0:01:29]} 29. Nc2 {[%emt 0:00:25]} Be7 {[%emt 0:03:32]} 30. f4 {[%emt 0:02:36]} f6 {[%emt 0:03:10]} 31. Ra1 {[%emt 0:01:17]} Nb2 {[%emt 0:03:59]} 32. Qb3 {[%emt 0:02:07]} Nc4 {[%emt 0:00:12]} 33. Qd3 {[%emt 0:00:43]} Nb2 {[%emt 0:00:03]} 34. Qb3 {[%emt 0:01:15]} Nc4 {[%emt 0:00:03]} 35. Qd3 {[%emt 0:00:25]} 1/2-1/2

[Event "FRA-ch Youth U18W 2019"]
[Site "Hyeres"]
[Date "2019.04.21"]
[Round "9.3"]
[White "Grall, Alba"]
[Black "Bellahcene, Meriem"]
[Result "1/2-1/2"]
[ECO "D00"]
[WhiteElo "1802"]
[BlackElo "1883"]
[Annotator "NA"]
[PlyCount "120"]
[EventDate "2019.04.14"]
[EventType "swiss"]
[EventCountry "FRA"]
[SourceTitle "playchess.com"]
[Source "ChessBase"]
[SourceQuality "1"]
[TimeControl "5400+30"]

1. d4 {[%emt 0:00:00]} d5 {[%emt 0:00:00]} 2. Bf4 {[%emt 0:00:14]} Nf6 {[%emt 0:01:47]} 3. Nc3 {[%emt 0:01:44]} Bf5 {[%emt 0:04:26]} 4. e3 {[%emt 0:02:00]} e6 {[%emt 0:01:22]} 5. a3 {[%emt 0:03:33]} a5 {[%emt 0:07:56]} 6. Nf3 {[%emt 0:00:32]} Bd6 {[%emt 0:01:51]} 7. Bg3 {[%emt 0:06:32]} O-O {[%emt 0:01:57]} 8. Be2 {[%emt 0:02:19]} c6 {[%emt 0:01:19]} 9. O-O {[%emt 0:00:49]} Bxg3 {[%emt 0:06:54]} 10. hxg3 {[%emt 0:01:38]} Qd6 {[%emt 0:00:30]} 11. Ne5 {[%emt 0:06:45]} Nfd7 {[%emt 0:09:31]} 12. g4 {[%emt 0:13:33]} Bg6 {[%emt 0:01:24]} 13. f4 {[%emt 0:03:58]} f6 {[%emt 0:09:09]} 14. Nxg6 {[%emt 0:07:34]} hxg6 {[%emt 0:00:01]} 15. Bd3 {[%emt 0:01:29]} Kf7 {[%emt 0:02:53]} 16. g5 {[%emt 0:08:04]} Rh8 {[%emt 0:03:28]} 17. Qg4 {[%emt 0:01:33]} f5 {[%emt 0:00:01]} 18. Qg3 {[%emt 0:02:46]} Na6 {[%emt 0:00:13]} 19. Kf2 {[%emt 0:01:00]} b5 {[%emt 0:06:27]} 20. Rh1 {[%emt 0:00:29]} Nc7 {[%emt 0:00:50]} 21. Rh3 {[%emt 0:06:14]} b4 {[%emt 0:04:30]} 22. Na4 {[%emt 0:05:21]} c5 {[%emt 0:02:45]} 23. Rxh8 {[%emt 0:05:31]} Rxh8 {[%emt 0:00:01]} 24. axb4 {[%emt 0:00:46]} c4 {[%emt 0:02:30]} 25. Be2 {[%emt 0:02:26]} Qxb4 {[%emt 0:02:02]} 26. c3 {[%emt 0:04:59]} Qb5 {[%emt 0:04:16]} 27. Kg1 {[%emt 0:00:54]} Nb6 {[%emt 0:05:29]} 28. Nc5 {[%emt 0:02:26]} Qxb2 {[%emt 0:01:49]} 29. Qe1 {[%emt 0:00:13]} Qb5 {[%emt 0:12:44]} 30. Nb7 {[%emt 0:01:38]} Qc6 {[%emt 0:00:34]} 31. Nxa5 {[%emt 0:00:15]} Qd7 {[%emt 0:00:36]} 32. Nb7 {[%emt 0:00:10]} Ra8 {[%emt 0:00:33]} 33. Rxa8 {[%emt 0:01:23]} Ncxa8 {[%emt 0:01:03]} 34. Nc5 {[%emt 0:00:13]} Qa7 {[%emt 0:00:12]} 35. g4 {[%emt 0:02:27]} Qa5 {[%emt 0:01:36]} 36. gxf5 {[%emt 0:00:49]} exf5 {[%emt 0:00:13]} 37. Bf3 {[%emt 0:00:12]} Nc7 {[%emt 0:01:17]} 38. Qb1 {[%emt 0:01:37]} Qa7 {[%emt 0:02:35]} 39. Qb2 {[%emt 0:00:33]} Ke7 {[%emt 0:00:30]} 40. Qb4 {[%emt 0:01:02]} Kf7 {[%emt 0:00:22]} 41. Qb2 {[%emt 0:00:05]} Ke8 {[%emt 0:00:58]} 42. Kf2 {[%emt 0:00:54]} Qa5 {[%emt 0:00:51]} 43. Kg3 {[%emt 0:00:26]} Ke7 {[%emt 0:00:15]} 44. Nb7 {[%emt 0:00:39]} Qa6 {[%emt 0:00:27]} 45. Nc5 {[%emt 0:00:05]} Qb5 {[%emt 0:01:21]} 46. Qa3 {[%emt 0:00:46]} Kf7 {[%emt 0:00:48]} 47. Qa7 {[%emt 0:00:28]} Qc6 {[%emt 0:00:40]} 48. Na6 {[%emt 0:01:28]} Nba8 {[%emt 0:00:01]} 49. Nxc7 {[%emt 0:00:11]} Nxc7 {[%emt 0:00:15]} 50. Bxd5+ {[%emt 0:00:11]} Qxd5 {[%emt 0:00:03]} 51. Qxc7+ {[%emt 0:00:09]} Kg8 {[%emt 0:00:06]} 52. Qc8+ {[%emt 0:01:55]} Kh7 {[%emt 0:00:02]} 53. Qc5 {[%emt 0:01:12]} Qe4 {[%emt 0:00:44]} 54. d5 {[%emt 0:00:42]} Qd3 {[%emt 0:01:46]} 55. Qd4 {[%emt 0:00:30]} Qf1 {[%emt 0:00:01]} 56. Qd2 {[%emt 0:01:09]} Qg1+ {[%emt 0:00:49]} 57. Kf3 {[%emt 0:00:25]} Qf1+ {[%emt 0:00:07]} 58. Kg3 {[%emt 0:00:49]} Qg1+ {[%emt 0:00:02]} 59. Kf3 {[%emt 0:00:36]} Qh1+ {[%emt 0:02:38]} 60. Qg2 {[%emt 0:01:39]} Qd1+ {[%emt 0:00:00]} 1/2-1/2